[Event "WYCC 2018 G14"]
[Site "Halkidiki"]
[Date "2018.10.22"]
[Round "4"]
[White "Tamrazyan, Gohar"]
[Black "Pandey, Divya"]
[Result "1-0"]
[ECO "A04"]
[WhiteElo "1824"]
[BlackElo "1523"]
[Annotator "NA"]
[PlyCount "47"]
[EventDate "2018.10.20"]
[EventType "swiss"]
[EventCountry "GRE"]
[SourceTitle "playchess.com"]
[Source "ChessBase"]
[SourceQuality "1"]
[TimeControl "40/5400+30:1800+30"]

1. Nf3 {[%emt 0:00:00]} Nc6 {[%emt 0:00:00]} 2. e3 {[%emt 0:00:00]} e5 {[%emt 0:00:30]} 3. b3 {[%emt 0:01:47]} d5 {[%emt 0:03:28]} 4. Bb2 {[%emt 0:03:01]} Bg4 {[%emt 0:02:37]} 5. Be2 {[%emt 0:01:43]} Bd6 {[%emt 0:03:46]} 6. O-O {[%emt 0:06:08]} Nge7 {[%emt 0:04:46]} 7. d4 {[%emt 0:04:44]} e4 {[%emt 0:04:59]} 8. Nfd2 {[%emt 0:00:41]} Bxe2 {[%emt 0:00:29]} 9. Qxe2 {[%emt 0:00:04]} O-O {[%emt 0:07:29]} 10. c4 {[%emt 0:01:34]} Bb4 {[%emt 0:03:31]} 11. cxd5 {[%emt 0:02:04]} Qxd5 {[%emt 0:00:46]} 12. Nc3 {[%emt 0:08:45]} Bxc3 13. Bxc3 f5 {[%emt 0:01:29]} 14. f3 {[%emt 0:05:22]} Ng6 {[%emt 0:06:33]} 15. fxe4 fxe4 {[%emt 0:00:09]} 16. Qg4 {[%emt 0:05:26]} Rae8 {[%emt 0:01:42]} 17. Rxf8+ {[%emt 0:00:38]} Kxf8 {[%emt 0:00:22]} 18. Rf1+ {[%emt 0:00:57]} Kg8 {[%emt 0:01:24]} 19. Rf5 {[%emt 0:03:21]} Qd8 {[%emt 0:04:51]} 20. Qe2 {[%emt 0:17:45]} Nce7 {[%emt 0:02:55]} 21. Qc4+ {[%emt 0:01:54]} Kh8 {[%emt 0:00:15]} 22. Rh5 {[%emt 0:06:20]} c6 {[%emt 0:04:21]} 23. Nxe4 {[%emt 0:06:38]} b5 {[%emt 0:07:55]} 24. Qf7 {[%emt 0:01:39]} 1-0

[Event "WYCC 2018 G14"]
[Site "Halkidiki"]
[Date "2018.10.22"]
[Round "4"]
[White "Kouta, Antonia"]
[Black "Tsakona, Maria"]
[Result "1-0"]
[ECO "B27"]
[WhiteElo "1812"]
[BlackElo "1503"]
[Annotator "NA"]
[PlyCount "77"]
[EventDate "2018.10.20"]
[EventType "swiss"]
[EventCountry "GRE"]
[SourceTitle "playchess.com"]
[Source "ChessBase"]
[SourceQuality "1"]
[TimeControl "40/5400+30:1800+30"]

1. e4 {[%emt 0:00:00]} c5 {[%emt 0:00:39]} 2. Nf3 {[%emt 0:00:00]} g6 {[%emt 0:00:06]} 3. d4 {[%emt 0:00:22]} cxd4 {[%emt 0:00:34]} 4. Nxd4 {[%emt 0:00:59]} Nf6 {[%emt 0:07:49]} 5. f3 {[%emt 0:07:01]} Bg7 {[%emt 0:05:10]} 6. Be3 {[%emt 0:12:34]} Nc6 {[%emt 0:01:40]} 7. Qd2 {[%emt 0:03:35]} d6 {[%emt 0:05:05]} 8. c4 {[%emt 0:01:21]} Nd7 {[%emt 0:13:44]} 9. Nc3 {[%emt 0:03:22]} O-O {[%emt 0:02:04]} 10. Be2 {[%emt 0:02:37]} Nde5 {[%emt 0:15:06]} 11. g4 {[%emt 0:20:08]} Be6 {[%emt 0:08:30]} 12. Nd5 {[%emt 0:07:02]} Bxd5 {[%emt 0:05:11]} 13. exd5 {[%emt 0:02:50]} Nxd4 {[%emt 0:00:48]} 14. Bxd4 {[%emt 0:00:12]} Re8 {[%emt 0:02:49]} 15. Qc3 {[%emt 0:04:46]} Bh6 {[%emt 0:11:19]} 16. h4 {[%emt 0:07:14]} Rc8 {[%emt 0:04:50]} 17. g5 {[%emt 0:10:20]} Bf8 {[%emt 0:00:19]} 18. h5 {[%emt 0:03:14]} e6 {[%emt 0:01:56]} 19. f4 {[%emt 0:03:06]} Nd7 {[%emt 0:00:09]} 20. hxg6 {[%emt 0:01:19]} fxg6 {[%emt 0:00:08]} 21. dxe6 {[%emt 0:04:30]} Rxe6 {[%emt 0:01:47]} 22. Rxh7 {[%emt 0:01:06]} Rxe2+ {[%emt 0:07:15]} 23. Kxe2 {[%emt 0:00:20]} Qe8+ {[%emt 0:00:18]} 24. Kf2 {[%emt 0:01:10]} Kxh7 {[%emt 0:02:10]} 25. Qh3+ {[%emt 0:00:23]} Kg8 {[%emt 0:00:30]} 26. Qh8+ {[%emt 0:00:50]} Kf7 {[%emt 0:00:06]} 27. Qh7+ {[%emt 0:00:15]} Ke6 {[%emt 0:00:47]} 28. Re1+ {[%emt 0:00:23]} Kf5 {[%emt 0:00:16]} 29. Rxe8 {[%emt 0:00:44]} Rxe8 {[%emt 0:00:20]} 30. Qf7+ {[%emt 0:00:05]} Nf6 {[%emt 0:00:35]} 31. Qxf6+ {[%emt 0:00:54]} Kg4 {[%emt 0:00:23]} 32. Qxg6 {[%emt 0:00:16]} Re7 {[%emt 0:00:17]} 33. f5 {[%emt 0:01:39]} Re4 {[%emt 0:00:26]} 34. Be3 {[%emt 0:00:25]} a5 {[%emt 0:00:47]} 35. f6 {[%emt 0:00:32]} Re5 {[%emt 0:00:11]} 36. Qf7 {[%emt 0:00:29]} Rf5+ {[%emt 0:00:35]} 37. Ke2 {[%emt 0:00:16]} Bh6 {[%emt 0:00:17]} 38. gxh6 {[%emt 0:00:07]} Rh5 {[%emt 0:00:09]} 39. Qg6+ {[%emt 0:00:13]} 1-0

[Event "WYCC 2018 G14"]
[Site "Halkidiki"]
[Date "2018.10.22"]
[Round "4"]
[White "Sleurs, Juliette"]
[Black "Toncheva, Nadya"]
[Result "1-0"]
[ECO "B30"]
[WhiteElo "1812"]
[BlackElo "2002"]
[Annotator "NA"]
[PlyCount "107"]
[EventDate "2018.10.20"]
[EventType "swiss"]
[EventCountry "GRE"]
[SourceTitle "playchess.com"]
[Source "ChessBase"]
[SourceQuality "1"]
[TimeControl "40/5400+30:1800+30"]

1. e4 {[%emt 0:00:00]} c5 {[%emt 0:00:00]} 2. Nf3 {[%emt 0:00:00]} Nc6 {[%emt 0:00:00]} 3. Bb5 {[%emt 0:00:00]} e6 {[%emt 0:00:00]} 4. Bxc6 {[%emt 0:00:35]} bxc6 {[%emt 0:00:00]} 5. O-O {[%emt 0:00:21]} d5 {[%emt 0:00:09]} 6. d3 {[%emt 0:00:46]} Bd6 {[%emt 0:03:10] B30: Sicilian: 2...Nc6 3 Bb5, lines without ...g6} (6... Nf6 7. Qe2 Be7 8. e5 Nd7 9. c4 O-O 10. Nc3 f6 11. exf6 Nxf6 12. Ne5 Qc7 13. Bg5 Bd6 14. Rae1 Ba6 {0-1 (79) Maslak,K (2566)-Grekh,A (2395) Pardubice 2017}) 7. c4 {[%emt 0:07:24]} Ne7 {[%emt 0:01:58]} 8. Nc3 {[%emt 0:02:26]} O-O {[%emt 0:00:35]} 9. e5 $146 {[%emt 0:03:06]} ({Predecessor:} 9. b3 e5 10. Re1 Bg4 11. h3 Bh5 12. g4 Bg6 13. Nh4 d4 14. Na4 {½-½ (52) Battey,A (2326)-Farago,S (2269) Budapest 2011}) 9... Bc7 {[%emt 0:00:14]} 10. Bg5 {[%emt 0:10:11]} h6 {[%emt 0:02:06]} 11. Bh4 {[%emt 0:02:08]} Qe8 {[%emt 0:00:35]} 12. Na4 {[%emt 0:06:44]} Nf5 {[%emt 0:00:39]} 13. Re1 {[%emt 0:04:08]} Rb8 {[%emt 0:03:55]} 14. Qc2 {[%emt 0:09:13]} Ba5 {[%emt 0:11:44]} 15. Rec1 {[%emt 0:05:20]} d4 {[%emt 0:04:27]} 16. Nxc5 {[%emt 0:06:29]} Bc7 {[%emt 0:07:31]} 17. Bg3 {[%emt 0:00:44]} Nxg3 {[%emt 0:02:57]} 18. hxg3 {[%emt 0:00:11]} Qe7 {[%emt 0:00:08]} 19. Ne4 {[%emt 0:05:18]} c5 {[%emt 0:00:19]} 20. a3 {[%emt 0:02:53]} a5 {[%emt 0:02:50]} 21. Ned2 {[%emt 0:06:45]} Bd7 {[%emt 0:02:51]} 22. a4 {[%emt 0:01:09]} Bc6 {[%emt 0:01:35]} 23. Re1 {[%emt 0:03:13]} Rb4 {[%emt 0:02:39]} 24. b3 {[%emt 0:01:59]} Rfb8 {[%emt 0:00:40]} 25. Rab1 $11 {[%emt 0:08:14]} Qf8 {[%emt 0:02:23]} 26. Qd1 {[%emt 0:01:13]} R8b7 {[%emt 0:00:43]} 27. Nh4 {[%emt 0:01:30]} g5 {[%emt 0:02:28]} 28. Nhf3 {[%emt 0:01:10]} Qb8 {[%emt 0:00:38]} 29. Ra1 {[%emt 0:04:16]} Kh7 {[%emt 0:06:57]} 30. Qe2 {[%emt 0:00:17]} Kg7 {[%emt 0:01:42]} 31. g4 {[%emt 0:01:12]} Qh8 {[%emt 0:04:40]} 32. Nh2 {[%emt 0:00:32]} Kg6 {[%emt 0:03:00]} 33. Nhf1 {[%emt 0:00:12]} h5 {[%emt 0:01:05]} 34. gxh5+ {[%emt 0:00:57]} Qxh5 {[%emt 0:00:05]} 35. Qxh5+ {[%emt 0:00:12]} Kxh5 {[%emt 0:00:04]} 36. Ng3+ {[%emt 0:01:20]} Kg6 {[%emt 0:00:03]} 37. Nge4 {[%emt 0:02:48]} Bxe4 {[%emt 0:05:32]} 38. Nxe4 {[%emt 0:01:14]} Bb6 {[%emt 0:01:41]} 39. Rab1 {[%emt 0:00:52]} Rd7 {[%emt 0:00:37]} 40. g3 {[%emt 0:00:00]} Ba7 {[%emt 0:00:00]} 41. Kg2 {[%emt 0:05:08]} Rb8 {[%emt 0:02:57]} 42. f4 {[%emt 0:08:14]} gxf4 {[%emt 0:00:43]} 43. gxf4 {[%emt 0:00:09]} Rdb7 {[%emt 0:04:05]} 44. Nd2 {[%emt 0:01:29]} Rh8 {[%emt 0:00:41]} 45. Rh1 {[%emt 0:00:51]} Rbb8 {[%emt 0:00:52]} 46. Kf3 {[%emt 0:00:50]} Rxh1 {[%emt 0:01:54]} 47. Rxh1 {[%emt 0:00:10]} Kg7 {[%emt 0:00:18]} 48. Ke4 {[%emt 0:01:33]} Rh8 {[%emt 0:05:09]} 49. Rxh8 {[%emt 0:00:06]} Kxh8 {[%emt 0:00:04]} 50. f5 {[%emt 0:01:55]} Kg7 {[%emt 0:00:04]} 51. Kf4 {[%emt 0:02:10]} Bb6 {[%emt 0:02:20]} 52. Ne4 {[%emt 0:00:46]} Ba7 {[%emt 0:00:08]} 53. fxe6 {[%emt 0:00:41]} fxe6 {[%emt 0:00:05]} 54. Ng5 {[%emt 0:00:12]} 1-0

[Event "WYCC 2018 G14"]
[Site "Halkidiki"]
[Date "2018.10.22"]
[Round "4"]
[White "Obada, Ema"]
[Black "Galvan Cipriani, Viviana"]
[Result "1/2-1/2"]
[ECO "B31"]
[WhiteElo "1811"]
[BlackElo "2109"]
[Annotator "ChessBase"]
[PlyCount "161"]
[EventDate "2018.10.20"]
[EventType "swiss"]
[EventCountry "GRE"]
[SourceTitle "playchess.com"]
[Source "ChessBase"]
[SourceQuality "1"]
[TimeControl "40/5400+30:1800+30"]

1. e4 {[%emt 0:00:00]} c5 {[%emt 0:00:00]} 2. Nf3 {[%emt 0:00:00]} Nc6 {[%emt 0:00:00]} 3. Bb5 {[%emt 0:00:00]} g6 {[%emt 0:00:38]} 4. Bxc6 {[%emt 0:00:00]} bxc6 {[%emt 0:00:10]} 5. d4 {[%emt 0:00:13]} Bg7 {[%emt 0:06:38]} 6. dxc5 {[%emt 0:00:19]} Qa5+ {[%emt 0:00:08]} 7. Nbd2 {[%emt 0:00:25]} Ba6 {[%emt 0:03:20]} 8. Rb1 {[%emt 0:00:32]} Qxc5 {[%emt 0:01:15]} 9. b4 {[%emt 0:00:25]} Qd6 {[%emt 0:04:31]} 10. c4 {[%emt 0:01:38]} Qd3 {[%emt 0:02:42]} 11. Bb2 {[%emt 0:06:54]} Nf6 {[%emt 0:13:03]} 12. Ne5 {[%emt 0:03:08]} Qd6 {[%emt 0:00:39]} 13. O-O {[%emt 0:05:10]} O-O {[%emt 0:03:06]} 14. a3 {[%emt 0:05:28]} Qc7 {[%emt 0:09:26]} 15. Re1 {[%emt 0:05:24]} d6 {[%emt 0:05:23]} 16. Nef3 {[%emt 0:07:45]} e5 {[%emt 0:03:30]} 17. Qa4 {[%emt 0:10:42]} Bb7 {[%emt 0:00:50]} 18. c5 {[%emt 0:00:53]} Nd7 {[%emt 0:01:19]} 19. cxd6 {[%emt 0:04:14]} Qxd6 {[%emt 0:00:07]} 20. Nc4 {[%emt 0:08:27]} Qe7 {[%emt 0:02:32]} 21. Na5 {[%emt 0:07:03]} Nb6 {[%emt 0:00:17]} 22. Qc2 {[%emt 0:00:45]} Rfe8 {[%emt 0:10:53]} 23. Nxc6 {[%emt 0:03:30]} Qc7 {[%emt 0:07:53]} 24. Rbc1 {[%emt 0:03:36]} Rac8 {[%emt 0:01:24]} 25. b5 {[%emt 0:01:51]} Bxc6 {[%emt 0:02:25]} 26. bxc6 {[%emt 0:00:06]} Re6 {[%emt 0:00:18]} 27. Qb3 {[%emt 0:01:10]} Qe7 {[%emt 0:01:45]} 28. Qb5 {[%emt 0:01:34]} Qe8 {[%emt 0:01:19]} 29. h3 {[%emt 0:06:28]} f6 {[%emt 0:04:05]} 30. Qb3 {[%emt 0:02:24]} Kh8 {[%emt 0:00:53]} 31. c7 {[%emt 0:02:05]} Re7 {[%emt 0:00:11]} 32. Qc2 {[%emt 0:02:37]} Qf7 {[%emt 0:00:11]} 33. Red1 {[%emt 0:02:44]} Bh6 {[%emt 0:02:11]} 34. Rd8+ {[%emt 0:00:24]} Kg7 {[%emt 0:00:06]} 35. Rcd1 {[%emt 0:00:23]} Rcxc7 {[%emt 0:01:42]} 36. Qe2 {[%emt 0:00:22]} Nc4 {[%emt 0:02:58]} 37. Nh4 {[%emt 0:02:28]} Nxb2 {[%emt 0:01:33]} 38. Qxb2 {[%emt 0:00:36]} Red7 {[%emt 0:00:32]} 39. Nf3 {[%emt 0:01:12]} Rxd8 {[%emt 0:03:03]} 40. Rxd8 {[%emt 0:00:00]} Bc1 {[%emt 0:00:00]} 41. Qb5 {[%emt 0:04:51]} Bxa3 {[%emt 0:02:54]} 42. g4 {[%emt 0:03:18]} Rb7 {[%emt 0:14:21]} 43. Qd3 {[%emt 0:03:15]} Be7 {[%emt 0:03:43]} 44. Rd5 {[%emt 0:00:31]} h6 {[%emt 0:00:36]} 45. Qc2 {[%emt 0:03:33]} Qe6 {[%emt 0:03:42]} 46. Kg2 {[%emt 0:02:43]} Rd7 {[%emt 0:02:53]} 47. Rb5 {[%emt 0:02:14]} Bd6 {[%emt 0:03:46]} 48. Qa4 {[%emt 0:04:24]} Qe7 {[%emt 0:02:51]} 49. Qa6 {[%emt 0:03:08]} Bc5 {[%emt 0:02:26]} 50. Rb2 {[%emt 0:03:55]} Rd6 {[%emt 0:01:06]} 51. Qc4 {[%emt 0:00:51]} Rb6 {[%emt 0:01:00]} 52. Rc2 {[%emt 0:00:43]} Bb4 {[%emt 0:00:13]} 53. Qd5 {[%emt 0:00:58]} Rd6 {[%emt 0:00:49]} 54. Qb5 {[%emt 0:01:20]} a5 {[%emt 0:00:26]} 55. Rc8 {[%emt 0:01:15]} Rd8 {[%emt 0:00:27]} 56. Rc6 {[%emt 0:01:11]} Ra8 {[%emt 0:01:16]} 57. Qb6 {[%emt 0:01:13]} Ra7 {[%emt 0:00:36]} 58. g5 {[%emt 0:01:14]} hxg5 {[%emt 0:00:49]} 59. Nxe5 {[%emt 0:01:29]} Qb7 {[%emt 0:01:07]} 60. Rxf6 {[%emt 0:01:34]} Qxe4+ {[%emt 0:01:30]} 61. Rf3 {[%emt 0:00:46]} Rb7 {[%emt 0:00:28]} 62. Qf6+ {[%emt 0:00:13]} Kh7 {[%emt 0:00:08]} 63. Nf7 {[%emt 0:00:25]} Rxf7 {[%emt 0:00:53]} 64. Qxf7+ {[%emt 0:00:05]} Kh6 {[%emt 0:00:09]} 65. Qf6 {[%emt 0:00:34]} Qb7 {[%emt 0:00:50]} 66. Qh8+ {[%emt 0:01:05]} Qh7 {[%emt 0:00:07]} 67. Qe5 {[%emt 0:00:55]} Qg7 {[%emt 0:00:27]} 68. Qe8 {[%emt 0:00:23]} Qb7 {[%emt 0:00:27]} 69. Qe3 {[%emt 0:00:27]} Bd6 {[%emt 0:00:57]} 70. h4 {[%emt 0:00:59]} Qd5 {[%emt 0:00:07]} 71. Qe8 {[%emt 0:01:15]} Be5 {[%emt 0:00:10]} 72. hxg5+ {[%emt 0:00:16]} Kxg5 {[%emt 0:00:02]} 73. Qe7+ {[%emt 0:00:12]} Kh6 {[%emt 0:00:39]} 74. Qh4+ {[%emt 0:00:05]} Kg7 {[%emt 0:00:06]} 75. Qg5 {[%emt 0:00:28]} Qe4 {[%emt 0:00:19]} 76. Qe7+ {[%emt 0:01:11]} Kh6 {[%emt 0:00:25]} 77. Qe6 {[%emt 0:00:36]} Kg5 {[%emt 0:01:03]} 78. Qe7+ {[%emt 0:01:06]} Kh6 {[%emt 0:00:10]} 79. Qa3 {[%emt 0:00:30]} Qd5 {[%emt 0:01:10]} 80. Qe3+ {[%emt 0:00:36]} g5 {[%emt 0:01:08]} 81. Kg1 {[%emt 0:01:06]} 1/2-1/2

[Event "WYCC 2018 G14"]
[Site "Halkidiki"]
[Date "2018.10.22"]
[Round "4"]
[White "Jaufarally, Nadia"]
[Black "Guillo Longares, Cecilia"]
[Result "0-1"]
[ECO "B31"]
[WhiteElo "1810"]
[BlackElo "1998"]
[Annotator "NA"]
[PlyCount "120"]
[EventDate "2018.10.20"]
[EventType "swiss"]
[EventCountry "GRE"]
[SourceTitle "playchess.com"]
[Source "ChessBase"]
[SourceQuality "1"]
[TimeControl "40/5400+30:1800+30"]

1. e4 {[%emt 0:00:00]} c5 {[%emt 0:00:00]} 2. Nf3 {[%emt 0:00:00]} Nc6 {[%emt 0:00:00]} 3. Bb5 {[%emt 0:00:00]} g6 {[%emt 0:00:00]} 4. Bxc6 {[%emt 0:00:00]} dxc6 {[%emt 0:00:00]} 5. d3 {[%emt 0:00:12]} Bg7 {[%emt 0:00:00]} 6. Nc3 {[%emt 0:00:13]} Bg4 {[%emt 0:00:00]} 7. h3 {[%emt 0:00:21]} Bxf3 {[%emt 0:00:00]} 8. Qxf3 {[%emt 0:00:07]} Nf6 {[%emt 0:00:33]} 9. Qg3 {[%emt 0:01:48]} Nh5 {[%emt 0:02:22]} 10. Qh4 {[%emt 0:02:54]} Qa5 {[%emt 0:03:33]} 11. Bd2 {[%emt 0:05:51]} Qb6 {[%emt 0:04:05]} 12. Rb1 {[%emt 0:12:48]} Bf6 {[%emt 0:00:46]} 13. Qg4 {[%emt 0:00:22]} O-O {[%emt 0:01:04]} 14. O-O {[%emt 0:00:37]} Qa5 {[%emt 0:05:56]} 15. f4 {[%emt 0:15:16]} Bd4+ {[%emt 0:07:52]} 16. Kh1 {[%emt 0:01:35]} c4 {[%emt 0:06:20]} 17. Qf3 {[%emt 0:25:04]} cxd3 {[%emt 0:08:24]} 18. cxd3 {[%emt 0:00:34]} Rad8 {[%emt 0:03:41]} 19. Rbd1 {[%emt 0:05:07]} Qb6 {[%emt 0:03:53]} 20. b3 {[%emt 0:02:04]} Qa6 {[%emt 0:02:01]} 21. a4 {[%emt 0:06:06]} Qb6 {[%emt 0:01:25]} 22. Rb1 {[%emt 0:01:34]} Qb4 {[%emt 0:02:10]} 23. Rfc1 {[%emt 0:01:08]} Bb6 {[%emt 0:06:12]} 24. Rd1 {[%emt 0:04:02]} Qd6 {[%emt 0:03:53]} 25. Bc1 {[%emt 0:03:44]} Rd7 {[%emt 0:09:20]} 26. Ne2 {[%emt 0:04:23]} Rfd8 {[%emt 0:01:39]} 27. Be3 {[%emt 0:01:41]} Bxe3 {[%emt 0:06:52]} 28. Qxe3 {[%emt 0:00:06]} c5 {[%emt 0:00:02]} 29. d4 {[%emt 0:00:39]} cxd4 {[%emt 0:00:24]} 30. Rxd4 {[%emt 0:00:12]} Qb6 {[%emt 0:00:03]} 31. a5 {[%emt 0:02:36]} Qxa5 {[%emt 0:00:55]} 32. Rxd7 {[%emt 0:00:16]} Rxd7 {[%emt 0:00:04]} 33. b4 {[%emt 0:00:50]} Qa2 {[%emt 0:00:40]} 34. Qc1 {[%emt 0:03:57]} Rd2 {[%emt 0:03:35]} 35. Qc8+ {[%emt 0:00:18]} Kg7 {[%emt 0:00:21]} 36. Qc3+ {[%emt 0:00:06]} f6 {[%emt 0:00:51]} 37. Ra1 {[%emt 0:00:25]} Qb2 {[%emt 0:01:30]} 38. Qxb2 {[%emt 0:00:45]} Rxb2 {[%emt 0:00:05]} 39. g4 {[%emt 0:00:40]} Rxe2 {[%emt 0:00:18]} 40. gxh5 {[%emt 0:00:00]} Rxe4 {[%emt 0:00:00]} 41. b5 {[%emt 0:07:36]} Rb4 {[%emt 0:00:55]} 42. Rxa7 {[%emt 0:00:16]} Rxb5 {[%emt 0:00:03]} 43. hxg6 {[%emt 0:00:15]} hxg6 {[%emt 0:00:16]} 44. Kg2 {[%emt 0:00:21]} Rb3 {[%emt 0:00:45]} 45. h4 {[%emt 0:01:55]} Kf7 {[%emt 0:02:46]} 46. Ra5 {[%emt 0:04:02]} b5 {[%emt 0:01:06]} 47. Ra7 {[%emt 0:01:07]} Rb2+ {[%emt 0:01:13]} 48. Kg3 {[%emt 0:02:09]} b4 {[%emt 0:00:32]} 49. f5 {[%emt 0:04:52]} gxf5 {[%emt 0:00:11]} 50. h5 {[%emt 0:00:07]} b3 {[%emt 0:00:36]} 51. h6 {[%emt 0:00:18]} Kg6 {[%emt 0:00:07]} 52. Rxe7 {[%emt 0:01:37]} Kxh6 {[%emt 0:00:08]} 53. Re1 {[%emt 0:00:18]} Kg5 {[%emt 0:01:49]} 54. Kf3 {[%emt 0:00:44]} f4 {[%emt 0:01:04]} 55. Ke4 {[%emt 0:03:02]} Rg2 {[%emt 0:01:12]} 56. Kf3 {[%emt 0:02:58]} Rg3+ {[%emt 0:01:01]} 57. Kf2 {[%emt 0:00:08]} b2 {[%emt 0:00:07]} 58. Rb1 {[%emt 0:00:08]} Rb3 {[%emt 0:00:04]} 59. Rg1+ {[%emt 0:00:40]} Kf5 {[%emt 0:00:08]} 60. Rb1 {[%emt 0:00:05]} Ke4 {[%emt 0:02:12]} 0-1

[Event "WYCC 2018 G14"]
[Site "Halkidiki"]
[Date "2018.10.22"]
[Round "4"]
[White "Zeliantsova, Kseniya"]
[Black "Stepanyan, Eva"]
[Result "1/2-1/2"]
[ECO "B40"]
[WhiteElo "1804"]
[BlackElo "1981"]
[Annotator "NA"]
[PlyCount "56"]
[EventDate "2018.10.20"]
[EventType "swiss"]
[EventCountry "GRE"]
[SourceTitle "playchess.com"]
[Source "ChessBase"]
[SourceQuality "1"]
[TimeControl "40/5400+30:1800+30"]

1. e4 {[%emt 0:00:00]} c5 2. Nf3 {[%emt 0:00:08]} e6 {[%emt 0:00:00]} 3. c4 {[%emt 0:00:17]} Nc6 {[%emt 0:01:02]} 4. Nc3 {[%emt 0:00:06]} d6 {[%emt 0:07:20]} 5. Be2 {[%emt 0:00:06]} g6 {[%emt 0:05:17]} 6. d4 {[%emt 0:03:10]} Bg7 {[%emt 0:04:40]} 7. Be3 $14 {[%emt 0:09:05]} cxd4 {[%emt 0:14:01]} 8. Nxd4 {[%emt 0:00:07]} Nxd4 {[%emt 0:13:48]} 9. Bxd4 {[%emt 0:00:09]} Nf6 {[%emt 0:05:54]} 10. Qd3 {[%emt 0:04:29]} O-O {[%emt 0:02:23]} 11. Rd1 {[%emt 0:01:52]} Qa5 {[%emt 0:01:26]} 12. O-O {[%emt 0:02:54]} Rd8 {[%emt 0:05:56]} 13. Nb5 {[%emt 0:07:21]} Ne8 {[%emt 0:00:52]} 14. Bxg7 {[%emt 0:04:42]} Kxg7 {[%emt 0:00:15]} 15. a3 {[%emt 0:11:12]} Rd7 {[%emt 0:04:58]} 16. f4 {[%emt 0:05:46]} Qb6+ {[%emt 0:01:02]} 17. Kh1 {[%emt 0:00:16]} a6 {[%emt 0:01:05]} 18. Nd4 {[%emt 0:06:57]} Nf6 {[%emt 0:04:27]} 19. f5 {[%emt 0:03:04]} e5 {[%emt 0:01:27]} 20. fxg6 {[%emt 0:08:41]} hxg6 {[%emt 0:02:38]} 21. Qf3 {[%emt 0:00:39]} Qd8 {[%emt 0:01:04]} 22. Nc2 {[%emt 0:00:39]} Rc7 {[%emt 0:00:23]} 23. Ne3 {[%emt 0:00:05]} Be6 {[%emt 0:01:04]} 24. Rxd6 {[%emt 0:12:19]} Qxd6 {[%emt 0:00:42]} 25. Qxf6+ {[%emt 0:00:05]} Kg8 {[%emt 0:00:24]} 26. Nf5 {[%emt 0:03:07]} Qf8 {[%emt 0:01:49]} 27. Rf3 {[%emt 0:00:56]} Bxf5 {[%emt 0:01:03]} 28. exf5 {[%emt 0:00:26]} Qe7 {[%emt 0:03:01]} 1/2-1/2

[Event "WYCC 2018 G14"]
[Site "Halkidiki"]
[Date "2018.10.22"]
[Round "4"]
[White "Somton, Anita"]
[Black "Kumar, Arya"]
[Result "0-1"]
[ECO "B13"]
[WhiteElo "1787"]
[BlackElo "1619"]
[Annotator "NA"]
[PlyCount "98"]
[EventDate "2018.10.20"]
[EventType "swiss"]
[EventCountry "GRE"]
[SourceTitle "playchess.com"]
[Source "ChessBase"]
[SourceQuality "1"]
[TimeControl "40/5400+30:1800+30"]

1. e4 {[%emt 0:00:00]} c6 {[%emt 0:00:00]} 2. d4 {[%emt 0:00:04]} d5 {[%emt 0:00:00]} 3. exd5 {[%emt 0:00:11]} cxd5 {[%emt 0:00:00]} 4. Bd3 {[%emt 0:00:08]} Nc6 {[%emt 0:00:00]} 5. c3 {[%emt 0:00:12]} g6 {[%emt 0:00:06]} 6. h3 {[%emt 0:02:33]} Bg7 {[%emt 0:00:12]} 7. Nf3 {[%emt 0:01:31]} Nf6 {[%emt 0:00:13]} 8. O-O {[%emt 0:02:15]} O-O {[%emt 0:00:10]} 9. Bf4 {[%emt 0:02:46]} Bf5 {[%emt 0:01:05]} 10. Bxf5 {[%emt 0:11:48]} gxf5 {[%emt 0:00:09]} 11. Ne5 {[%emt 0:01:58]} Nxe5 {[%emt 0:00:12]} 12. dxe5 {[%emt 0:00:59]} Ne4 {[%emt 0:00:16]} 13. Nd2 {[%emt 0:04:40]} Qc7 {[%emt 0:07:57]} 14. Nf3 {[%emt 0:03:07]} e6 {[%emt 0:00:46]} 15. Qc1 {[%emt 0:05:16]} Qe7 {[%emt 0:04:40]} 16. Qe3 {[%emt 0:10:47]} a6 {[%emt 0:04:46]} 17. Rfe1 {[%emt 0:02:41]} Rac8 {[%emt 0:02:44]} 18. Nd2 {[%emt 0:02:53]} Kh8 {[%emt 0:08:25]} 19. f3 {[%emt 0:04:17]} Nxd2 {[%emt 0:07:24]} 20. Qxd2 {[%emt 0:02:41]} Rc4 {[%emt 0:02:58]} 21. Rad1 {[%emt 0:02:30]} b5 {[%emt 0:03:21]} 22. b3 {[%emt 0:03:04]} Rc6 {[%emt 0:01:16]} 23. Kh1 {[%emt 0:01:00]} Rfc8 {[%emt 0:01:36]} 24. Rc1 {[%emt 0:01:38]} Qc7 {[%emt 0:02:52]} 25. Qf2 {[%emt 0:02:41]} Qd7 {[%emt 0:06:57]} 26. Qd4 {[%emt 0:03:13]} R8c7 {[%emt 0:02:39]} 27. Bd2 {[%emt 0:01:54]} Qc8 {[%emt 0:00:29]} 28. f4 {[%emt 0:00:44]} a5 {[%emt 0:01:07]} 29. Rcd1 {[%emt 0:01:32]} Bf8 {[%emt 0:05:46]} 30. Qf2 {[%emt 0:02:06]} b4 {[%emt 0:04:37]} 31. cxb4 {[%emt 0:01:03]} axb4 {[%emt 0:00:07]} 32. Qh4 {[%emt 0:01:08]} Be7 {[%emt 0:00:14]} 33. Qh5 {[%emt 0:00:57]} Rc2 {[%emt 0:01:14]} 34. Re3 {[%emt 0:01:34]} Qg8 {[%emt 0:02:06]} 35. Kh2 {[%emt 0:01:51]} Qg6 {[%emt 0:02:51]} 36. Qe2 {[%emt 0:01:05]} R7c3 {[%emt 0:01:27]} 37. Qf3 {[%emt 0:03:18]} Rc8 {[%emt 0:05:19]} 38. Qe2 {[%emt 0:03:35]} Qh6 {[%emt 0:05:02]} 39. Rf3 {[%emt 0:01:51]} Rxa2 {[%emt 0:00:32]} 40. Qb5 {[%emt 0:00:00]} Rcc2 {[%emt 0:00:00]} 41. Qe8+ {[%emt 0:07:45]} Qf8 {[%emt 0:01:14]} 42. Qxf8+ {[%emt 0:00:10]} Bxf8 {[%emt 0:00:06]} 43. Rd3 {[%emt 0:00:19]} f6 {[%emt 0:10:11]} 44. exf6 {[%emt 0:02:03]} Bd6 {[%emt 0:05:30]} 45. Kh1 {[%emt 0:03:00]} Kg8 {[%emt 0:03:08]} 46. g4 {[%emt 0:01:42]} fxg4 {[%emt 0:04:36]} 47. hxg4 {[%emt 0:00:15]} Kf7 {[%emt 0:00:04]} 48. g5 {[%emt 0:00:46]} Kg6 {[%emt 0:01:15]} 49. Kg2 {[%emt 0:06:16]} Bxf4 {[%emt 0:01:28]} 0-1